Cogmind - Beta 10.2 @@@ ROGUE MODE // 2021.11.12 @ 23:42:01 Player: rath Result: Destroyed by G-47 Trooper with Particle Gun Performance ------------- Evolutions (2) 1000 Regions Visited (6) 1200 Robots Destroyed (35) 175 Value Destroyed (1075) 1075 Prototype IDs (3) 60 Alien Tech Used (0) 0 Bonus (255) 255 TOTAL SCORE: 3765 Bonus ------- High Alert Combat Kills 55 Entered Garrisons 200 Cogmind --------- Core Integrity 0/550 Matter 44/300 Energy 98/100 System Corruption 0% Temperature Cool (9) Movement Core (50) Location -8/Garrison Parts ------- > --- POWER (1) -------- (None) > --- PROPULSION (2) --- (None) > --- UTILITY (6) ------ (None) > --- WEAPON (2) ------- (None) > --- INVENTORY (4) ---- Aluminum Leg Improved Propulsion Shielding Gauss Rifle Gauss Rifle Peak State ------------ > --- POWER ------------ Heavy Ion Engine > --- PROPULSION ------- Improved Aluminum Leg Carbon-fiber Leg > --- UTILITY ---------- Small Storage Unit Medium Storage Unit Improved Propulsion Shielding > --- WEAPON ----------- Gauss Rifle Gauss Rifle > --- INVENTORY -------- Light Nuclear Core Aluminum Leg Aluminum Leg Improved Aluminum Leg Improved Propulsion Shielding Gauss Rifle Gauss Rifle Grenade Launcher Grenade Launcher [Rating: 23] Favorites ----------- Power Ion Engine Engine Ion Engine Propulsion Light Treads Treads Light Treads Leg Improved Aluminum Leg Wheel Compact Wheel Utility Small Storage Unit Storage Small Storage Unit Protection Improved Propulsion Shielding Weapon Grenade Launcher Energy Gun Particle Gun Ballistic Gun Light Assault Rifle Launcher Grenade Launcher Build | -11 -10 -10 -10 -9 -8 -8 ------- Run | Scr Mat Min Exi Min Mat Gar Slots Evolved 4 | . . . . . 4 . Power . | . . . . . . . Propulsion . | . . . . . . . Utility 4 | . . . . . 4 . Weapon . | . . . . . . . Parts Attached 30 | . 9 2 . . 10 9 Power 3 | . 1 . . . 2 . Engine 3 | . 1 . . . 2 . Core . | . . . . . . . Reactor . | . . . . . . . Propulsion 10 | . 3 2 . . 3 2 Treads 3 | . 3 . . . . . Leg 6 | . . 1 . . 3 2 Wheel 1 | . . 1 . . . . Hover . | . . . . . . . Flight . | . . . . . . . Utility 3 | . 1 . . . . 2 Device . | . . . . . . . Storage 1 | . 1 . . . . . Processor . | . . . . . . . Hackware . | . . . . . . . Protection 2 | . . . . . . 2 Artifact . | . . . . . . . Weapon 14 | . 4 . . . 5 5 Energy Gun 1 | . 1 . . . . . Energy Cannon . | . . . . . . . Ballistic Gun 8 | . 1 . . . 4 3 Ballistic Cannon . | . . . . . . . Launcher 5 | . 2 . . . 1 2 Special Weapon . | . . . . . . . Impact Weapon . | . . . . . . . Slashing Weapon . | . . . . . . . Piercing Weapon . | . . . . . . . Special Melee Weapon . | . . . . . . . Unidentified Prototypes 1 | . . . . . 1 . Parts Lost 14 | . . 2 . . . 12 Power 1 | . . . . . . 1 Propulsion 6 | . . 2 . . . 4 Utility 2 | . . . . . . 2 Weapon 5 | . . . . . . 5 Highest Loss Streak 11 | . . 2 . . . 11 Average Slot Usage (%) 86 | . 91 98 100 100 62 65 Engine 12 | . 14 14 14 14 9 7 Treads 11 | . 27 16 . . . . Leg 8 | . . 4 14 14 17 16 Wheel 3 | . . 4 14 14 . . Storage 22 | . 20 28 28 28 18 17 Protection 1 | . . . . . . 7 Energy Gun 1 | . 2 . . . . . Ballistic Gun 14 | . 15 14 14 14 15 13 Launcher 8 | . 9 14 14 14 2 1 Naked Turns 2 | . . . . . . 2 Heaviest Build 30 | 12 23 21 21 21 28 30 Greatest Support 40 | 20 40 40 16 16 28 28 Greatest Overweight (x) 8 | . . 1 1 1 1 8 Average Overweight (x) . | . . . 1 1 . . Largest Inventory Capacity 10 | 6 10 10 10 10 10 10 Average Capacity 9 | 6 7 10 10 10 10 9 Most Carried 10 | 6 7 8 8 9 10 10 Average Carried 7 | 6 6 7 8 8 9 9 Final Capacity 10 | 6 10 10 10 10 10 4 Final Carried 10 | 6 7 8 8 9 10 4 Class Distribution -------------------- 100% | Mutant Dominant Class ---------------- Mutant | -10/Materials Mutant | -10/Mines Mutant | -10/Exiles Mutant | -9/Mines Mutant | -8/Materials Mutant | -8/Garrison Resources | -11 -10 -10 -10 -9 -8 -8 ----------- Run | Scr Mat Min Exi Min Mat Gar Matter Collected 875 | 200 252 65 . . 124 234 Remotely . | . . . . . . . Salvage Created 1166 | 71 396 48 . . 289 362 Parts 66 | 2 20 5 . . 24 15 Haulers Intercepted 1 | . . . . . 1 . Recyclers Shooed 1 | . . . . . 1 . Parts Field Recycled . | . . . . . . . Retrieved Matter . | . . . . . . . Parts Self-Destructed . | . . . . . . . Prevented . | . . . . . . . Kills | -11 -10 -10 -10 -9 -8 -8 ------- Run | Scr Mat Min Exi Min Mat Gar Combat Hostiles Destroyed 29 | . 8 3 . . 9 9 Guns 18 | . 5 3 . . 6 4 AOE 11 | . 3 . . . 3 5 Classes Destroyed 7 | 1 3 1 . . 1 1 Builder 1 | . 1 . . . . . Hauler 1 | . . . . . 1 . Recycler 2 | 1 1 . . . . . Operator 2 | . 1 . . . 1 . Swarmer 8 | . . 3 . . 5 . Grunt 17 | . 8 . . . 4 5 Sentry 4 | . . . . . . 4 Best Kill Streak 5 | 1 3 3 . . 4 5 Combat Bots Only 5 | . 2 3 . . 4 5 Max Kills in Single Turn 2 | 1 2 1 . . 2 2 Gunslinging . | . . . . . . . Exploded 2 | . 1 . . . 2 2 Melee . | . . . . . . . Uniques/NPCs Destroyed . | . . . . . . . Combat | -11 -10 -10 -10 -9 -8 -8 -------- Run | Scr Mat Min Exi Min Mat Gar Damage Taken 2978 | . 586 94 . 3 400 1895 Core 657 | . 93 10 . 1 73 480 Absorbed by Shields 63 | . . . . . . 63 Core Remaining (%) 79 | 100 . . . 58 . . Volleys Fired 108 | 1 40 13 . . 25 29 Largest 2 | 2 2 1 . . 2 2 Hottest 58 | 40 50 20 . . 56 58 Shots Fired 190 | 2 75 13 . . 45 55 Gun 169 | 2 69 13 . . 43 42 Cannon . | . . . . . . . Launcher 21 | . 6 . . . 2 13 Special . | . . . . . . . Kinetic 169 | 2 69 13 . . 43 42 Thermal . | . . . . . . . Explosive 21 | . 6 . . . 2 13 Electromagnetic . | . . . . . . . Robot Hit Streak 8 | 2 8 4 . . 7 8 Robot Miss Streak 4 | . 2 3 . . 4 2 Penetration Max 1 | . . . . . 1 1 Secondary Targets 2 | . . . . . 1 1 Max Gunslinging Chain 1 | . . . . . 1 1 Shots Hit Robots 127 | 2 53 8 . . 23 41 Core Hits 70 | 2 24 5 . . 16 23 Critical Hits . | . . . . . . . Critical Kills . | . . . . . . . Critical Parts Destroyed . | . . . . . . . Melee Attacks . | . . . . . . . Impact . | . . . . . . . Slashing . | . . . . . . . Piercing . | . . . . . . . Sneak Attacks . | . . . . . . . Combat Hostiles . | . . . . . . . Follow-up Attacks . | . . . . . . . Damage Inflicted 3025 | 21 1027 72 . . 740 1165 Guns 1698 | 21 490 72 . . 492 623 Cannons . | . . . . . . . Explosions 1327 | . 537 . . . 248 542 Melee . | . . . . . . . Ramming . | . . . . . . . Kinetic 1698 | 21 490 72 . . 492 623 Thermal . | . . . . . . . Explosive 1327 | . 537 . . . 248 542 Electromagnetic . | . . . . . . . Impact . | . . . . . . . Slashing . | . . . . . . . Piercing . | . . . . . . . Highest Corruption . | . . . . . . . Average Corruption . | . . . . . . . Corruption Purged . | . . . . . . . Overload Shots . | . . . . . . . Overflow Damage 6 | . 6 . . . . . Projectiles . | . . . . . . . Explosions 6 | . 6 . . . . . Melee . | . . . . . . . Knockbacks . | . . . . . . . Impact . | . . . . . . . Kinetic . | . . . . . . . Secondary . | . . . . . . . Self-Inflicted Damage 159 | . 42 . . . 36 81 Shots 10 | . 2 . . . 2 6 Rammed . | . . . . . . . Targets Rammed . | . . . . . . . Kicked . | . . . . . . . Crushed . | . . . . . . . Highest Temperature 68 | . 25 . . . 2 68 Average Temperature 11 | . 9 . . . 1 16 Received Heat Transfer 1278 | . 303 . . . 117 858 Siege Activations . | . . . . . . . Robots Corrupted . | . . . . . . . Combat Hostiles . | . . . . . . . Parts Fried . | . . . . . . . Impact Corruptions . | . . . . . . . Robots Melted . | . . . . . . . Combat Hostiles . | . . . . . . . Parts Melted . | . . . . . . . Heat Transferred . | . . . . . . . Parts Sabotaged . | . . . . . . . Parts Stolen . | . . . . . . . Parts Stripped . | . . . . . . . Power Chain Reactions . | . . . . . . . Missiles Intercepted . | . . . . . . . Alert | -11 -10 -10 -10 -9 -8 -8 ------- Run | Scr Mat Min Exi Min Mat Gar Peak Influence 491 | 5 213 50 . . 282 491 Initial 183 | . 3 . . . . 183 Average 130 | 5 56 21 . . 76 424 Maximum Alert Level 2 | . 1 . . . 1 2 Low Security (%) 77 | 100 99 100 . 100 88 6 Level 1 2 | . . . . . 11 3 Level 2 19 | . . . . . . 89 Level 3 . | . . . . . . . Level 4 . | . . . . . . . Level 5 . | . . . . . . . High Security . | . . . . . . . Max Security . | . . . . . . . Squads Dispatched 3 | . 1 . . . 2 . Investigation 1 | . 1 . . . . . Extermination . | . . . . . . . Reinforcement 1 | . . . . . 1 . Assault . | . . . . . . . Garrison 1 | . . . . . 1 . Intercept . | . . . . . . . Construction Impeded . | . . . . . . . Haulers Reinforced . | . . . . . . . Stealth | -11 -10 -10 -10 -9 -8 -8 --------- Run | Scr Mat Min Exi Min Mat Gar Distress Signals 1 | . 1 . . . . . Communications Jammed . | . . . . . . . Distress Signals . | . . . . . . . Times Spotted 55 | . 17 3 . 1 14 20 Peak Tracking Total 9 | . 4 3 . 1 5 9 Tactical Retreats 3 | . . . . 1 . 2 Traps | -11 -10 -10 -10 -9 -8 -8 ------- Run | Scr Mat Min Exi Min Mat Gar Traps Triggered 7 | . 1 . . . . 6 Indirectly . | . . . . . . . Trap Hack Attempts . | . . . . . . . Triggered . | . . . . . . . Disarmed . | . . . . . . . Reprogrammed . | . . . . . . . Reused . | . . . . . . . Traps Extracted . | . . . . . . . Installed . | . . . . . . . Triggered . | . . . . . . . Machines | -11 -10 -10 -10 -9 -8 -8 ---------- Run | Scr Mat Min Exi Min Mat Gar Machines Disabled 3 | . 2 . . . 1 . Max in Single Turn 1 | . 1 . . . 1 . Machines Sabotaged . | . . . . . . . Garrisons Compromised . | . . . . . . . Overloaded Fab Kills . | . . . . . . . Fab Network Shutdowns . | . . . . . . . Hacking | -11 -10 -10 -10 -9 -8 -8 --------- Run | Scr Mat Min Exi Min Mat Gar Machines Accessed 11 | . 5 . 4 . 2 . Terminals 6 | . 5 . . . 1 . Fabricators . | . . . . . . . Repair Stations . | . . . . . . . Recycling Units . | . . . . . . . Scanalyzers . | . . . . . . . Garrison Access 1 | . . . . . 1 . Total Hacks 33 | . 24 . 4 . 5 . Successful 21 | . 14 . 4 . 3 . Failed 12 | . 10 . . . 2 . Catastrophic . | . . . . . . . Database Lockouts . | . . . . . . . Manual 17 | . 13 . . . 4 . Terminals 28 | . 24 . . . 4 . Fabricators . | . . . . . . . Repair Stations . | . . . . . . . Recycling Units . | . . . . . . . Scanalyzers . | . . . . . . . Garrison Access 1 | . . . . . 1 . Terminal Hacks 14 | . 10 . 4 . . . Record 4 | . . . 4 . . . Prototype ID Bank 1 | . 1 . . . . . Branch Access Points 2 | . 2 . . . . . Unreport Threat 1 | . 1 . . . . . Locate Traps 3 | . 3 . . . . . Transport Status 1 | . 1 . . . . . Hauler Manifests 1 | . 1 . . . . . Registered Components 1 | . 1 . . . . . Fabricator Hacks . | . . . . . . . Repair Station Hacks . | . . . . . . . Recycling Unit Hacks . | . . . . . . . Scanalyzer . | . . . . . . . Garrison Access Hacks 1 | . . . . . 1 . Unlock Access 1 | . . . . . 1 . Unauthorized Hacks 6 | . 4 . . . 2 . Terminals 6 | . 4 . . . 2 . Botnet 2 | . 1 . . . 1 . Operators 4 | . 3 . . . 1 . Fabricators . | . . . . . . . Repair Stations . | . . . . . . . Recycling Units . | . . . . . . . Scanalyzers . | . . . . . . . Garrison Access . | . . . . . . . Data Cores Recovered . | . . . . . . . Used . | . . . . . . . Hacking Detections 4 | . 3 . . . 1 . Full Trace Events 1 | . 1 . . . . . Feedback Events . | . . . . . . . Feedback Blocked . | . . . . . . . Robot Schematics Acquired . | . . . . . . . Robots Built . | . . . . . . . Matter . | . . . . . . . Time . | . . . . . . . Total Robot Build Rating . | . . . . . . . Part Schematics Acquired . | . . . . . . . Parts Built . | . . . . . . . Matter . | . . . . . . . Time . | . . . . . . . Total Part Build Rating . | . . . . . . . Parts Repaired . | . . . . . . . Time . | . . . . . . . Parts Recycled . | . . . . . . . Recycled Matter . | . . . . . . . Retrieved Matter . | . . . . . . . Retrieved Components . | . . . . . . . Parts Scanalyzed . | . . . . . . . Part Schematics Acquired . | . . . . . . . Parts Damaged . | . . . . . . . Bothacking | -11 -10 -10 -10 -9 -8 -8 ------------ Run | Scr Mat Min Exi Min Mat Gar Used RIF Installer . | . . . . . . . Robots Hacked . | . . . . . . . Non-combat . | . . . . . . . Combat . | . . . . . . . Robot Hacks Applied . | . . . . . . . Relay Couplers Released . | . . . . . . . Robots Rewired . | . . . . . . . Allies Hacked . | . . . . . . . Hacks Repelled . | . . . . . . . Allies | -11 -10 -10 -10 -9 -8 -8 -------- Run | Scr Mat Min Exi Min Mat Gar Total Allies 1 | . . . . 1 . . Largest Group 1 | . . . . 1 . . Highest-Rated Group 31 | . . . . 31 . . Highest-Rated Ally 31 | . . . . 31 . . Total Orders . | . . . . . . . Ally Attacks 1 | . . . . 1 . . Total Damage 21 | . . . . 21 . . Kills . | . . . . . . . Allies Corrupted . | . . . . . . . Allies Melted . | . . . . . . . Intel | -11 -10 -10 -10 -9 -8 -8 ------- Run | Scr Mat Min Exi Min Mat Gar Robot Analysis Total . | . . . . . . . Derelict Logs Recovered 4 | . . 1 . 3 . . Drone Launches . | . . . . . . . Drone Recoveries . | . . . . . . . Exploration | -11 -10 -10 -10 -9 -8 -8 ------------- Run | Scr Mat Min Exi Min Mat Gar Turns Passed 2392 | 3 869 231 449 143 275 422 Spaces Moved 1442 | 1 438 142 409 122 131 199 Core 6 | . . . . . . 6 Treads 503 | . 432 71 . . . . Legs 322 | 1 6 . . . 122 193 Wheels 611 | . . 71 409 122 9 . Hover . | . . . . . . . Flight . | . . . . . . . Fastest Speed 50 | 120 120 110 110 110 110 50 Average Speed 133 | 120 159 135 110 110 119 146 Slowest Speed 450 | 120 160 160 110 110 150 450 Overloaded Moves . | . . . . . . . Propulsion Burnouts . | . . . . . . . Robots Hopped . | . . . . . . . Cave-ins Triggered . | . . . . . . . Exploration Rate (%) 42 | 2 86 30 89 32 18 43 Regions Visited 6 Branch Regions 3 Pre-discovered Areas 3 | . . 2 . 1 . . Known Exits Taken 2 | . 1 . . . 1 . Unknown Exits Taken 4 | 1 . 1 1 1 . . Scrap Searched 1 | . . 1 . . . . Spaces Dug . | . . . . . . . Terrain Destroyed 130 | . 32 . . . 16 82 Melee . | . . . . . . . Projectile 9 | . . . . . 3 6 AOE 121 | . 32 . . . 13 76 Terrain Rammed . | . . . . . . . Walls Destroyed . | . . . . . . . Machines Disabled . | . . . . . . . Actions | -11 -10 -10 -10 -9 -8 -8 --------- Run | Scr Mat Min Exi Min Mat Gar Total 1729 | 1 539 171 408 130 208 272 Wait 93 | . 42 12 . 8 22 9 Move 1436 | . 437 141 408 121 130 199 Hop . | . . . . . . . Pick Up 18 | . 5 3 . 1 7 2 Fast Attach 10 | . 5 . . . 3 2 Attach 8 | . 1 2 . . . 5 Detach 1 | . . . . . 1 . Swap 12 | . 3 . . . 7 2 Drop 21 | . 6 . . . 13 2 Fire 108 | 1 40 13 . . 25 29 Melee . | . . . . . . . Ram . | . . . . . . . Kick . | . . . . . . . Crush . | . . . . . . . Escape Stasis 22 | . . . . . . 22 Rewire . | . . . . . . . Trap . | . . . . . . . Miscellaneous . | . . . . . . . Route ------- -11/Scrapyard -10/Materials (discovered 5 exits: [*Mat x3] / *Min x2) -10/Mines -10/Exiles -9/Mines -8/Materials (discovered 2 exits: Fac / Gar) -8/Garrison History --------- Turn | Location | Event 4 | -11/Scrapyard | Discovered new exit (range 0) 4 | -11/Scrapyard | Entered Materials 273 | -10/Materials | Discovered new exit (range 12) 316 | -10/Materials | Build established: Mutant 413 | -10/Materials | Discovered new exit (range 16) 522 | -10/Materials | Identified exit to Mines 576 | -10/Materials | Discovered new exit (range 15) 743 | -10/Materials | Discovered new exit (range 15) 873 | -10/Materials | Entered Mines 874 | -10/Mines | Learned location of Storage (-9) 877 | -10/Mines | Met a Derelict bent on vengeance 889 | -10/Mines | Learned location of Zion (-7) 1100 | -10/Mines | Deemed a non-threat by the Exiles lab entrance 1100 | -10/Mines | Discovered new exit (range 5) 1104 | -10/Mines | Entered Exiles 1104 | -10/Exiles | Found Exiles lab abandoned 1539 | -10/Exiles | Discovered new exit (range 15) 1553 | -10/Exiles | Entered Mines 1556 | -9/Mines | Received a Mining Laser from a helpful Derelict 1576 | -9/Mines | Discovered new exit (range 14) 1587 | -9/Mines | Learned location of 1 exit from Materials 1588 | -9/Mines | Learned location of 1 exit from Proximity Caves 1696 | -9/Mines | Entered Materials 1696 | -8/Materials | Evolved 4 slots: Utility x4 1697 | -8/Materials | Identified exit to Factory 1934 | -8/Materials | Garrison activated, responded to threat 1970 | -8/Materials | Identified exit to Garrison 1971 | -8/Materials | Entered Garrison 2018 | -8/Garrison | Triggered checkpoint 2266 | -8/Garrison | Triggered checkpoint 2344 | -8/Garrison | Core integrity fell below 50% 2350 | -8/Garrison | Triggered checkpoint 2385 | -8/Garrison | Core integrity fell below 20% 2393 | -8/Garrison | Destroyed by G-47 Trooper with Particle Gun Last Messages --------------- 02375_ Field strength at 70. 02376_ Field strength at 55. 02377_ Field strength at 40. 02378_ Field strength at 25. 02378_ Aluminum Leg destroyed. 02379_ Field strength at 10. 02380_ Stasis field depleted. 02380_ Triggered Stasis Trap. 02380_ A bubble of rippling energy engulfs the area. 02380_ Field strength at 94. 02382_ Field strength at 83. 02383_ Dropped Med. Storage Unit. 02383_ Field strength at 64. 02384_ Field strength at 54. 02385_ Field strength at 39. 02386_ Field strength at 28. 02387_ Field strength at 17. 02388_ Field strength at 7. 02389_ Stasis field depleted. 02391_ Dropped Sml. Storage Unit. Map ----- +----------------------------------------------------+ | ?????????????????????????????????????????????????? | | ?????????????????????????????????????????????????? | | ?????????????????????????????????????????????????? | | ?????????????????????????????????????????????????? | | ?????????????????????????????????????????????????? | | ?????????????????????????????????????????????????? | | ?????????????????????????????????????????????????? | | ?????????????????????????????????????????????????? | | ?????????????????????????????????????????????????? | | ?????????????????????????????????????????????????? | | ?????????????????????????????????????????????????? | | ?????????????????????????###?????????????????????? | | ????????????????????????? ?????????????????????? | | ????????????????????????? ?????????????????????? | | ????????????????????????? #?????????????????????? | | ????????????????????????? #?????????????????????? | | ????????????????????????? #?????????????????????? | | ????????????????????????# #?????????????????????? | | ????????????????????????# #?????????????????????? | | ????????????????????????# #?????????????????????? | | ????????????????????????# #?????????????????????? | | ????????????????????????# #?????????????????????? | | ????????????????????????# #?????????????????????? | | ????????????????????????# #?????????????????????? | | ?????????????############ ###"""#####???????????? | | ?????????????# @ #?????????? | | ?????????????# / #?????????? | | ?????????????# #########!*###"""#####???????????? | | ?????????????# ????????#l #?????????????????????? | | ?????????????# ????????#g^#?????????????????????? | | ?????????????# #???????#g #?????????????????????? | | ?????????????# #?????? + g#?????????????????????? | | ?????????????# #?????### #?????????????????????? | | ??######""""## ##??????# #?????????????????????? | | ### ######## #?????????????????????? | | #?????????????????????? | | ? #?????????????????????? | | ??# ?# ## ###########?????????????????????? | | ??# ## ## ###?????????????????????????????? | | ??" ^ #?????????????????????????????? | | ??" #?????????????????????????????? | | #?" ^ #?????????????????????????????? | | #?" ^ #?????????????????????????????? | | #?# ## % ###?????????????????????????????? | | ??# ## [=# #######?????????????????????????? | | ### = [* #?????????????????????? | | %+ ! #?????????????????????? | | ### ###+#### #?????????????????????? | | ??## ## ######???????????????????????????????? | | ???# ## #????????????????????????????????????? | +----------------------------------------------------+ Best States ------------- Heat Dissipation 31 Energy Generation 14 Energy Capacity 280 Matter Stores 300 Matter Capacity 300 Sight Range 16 Terrain Scan Density 10 Armor Coverage 150 Propulsion Shielding 66 Evasion (%) 40 Recoil Reduction 2 Item Schematics ----------------- None Robot Schematics ------------------ None Fabricated ------------ Nothing Alien Tech Used ----------------- None Achievements -------------- None Challenges ------------ None Game ------ Seed TacticalSurgeSuperbattery Manual? 0 Play Time 00:26:26 Cumulative 75.9 hours Start 2021.11.12 @ 23:15:45 End 2021.11.12 @ 23:42:01 Sessions 1 Manual Loads 0 Difficulty Rogue Special Mode None Game No. 30 Rogue 30 Adventurer 0 Explorer 0 Win Type - Total 1 Types 1/0/0/0/0/0/0/0/0 Lore% 40 Gallery% 53 Achievement% 38 Wizard Run 0 Options --------- ASCII 0 Keyboard 1 Movement Numpad Keybinds 0 Fullscreen 1 Font 36/Smallcaps Map View 76x50 Tactical HUD 1 Map Filters NONE Filters NONE Steam 1 RUN: 041152b1-4903-4a1f-bd3b-906d7f86795b